bitfinex/quotes_ETHUSD_20250318
["timestamp","ask_amount","ask_price","bid_price","bid_amount"]
[1742268790158,10.96919947,1905.2,1904.8,5.24978]
[1742268790159,5.72036947,1905.2,1904.9,5.24959]
[1742268790368,5.72036947,1905.2,1904.8,5.24989]
[1742268790534,5.72036947,1905.2,1904.9,5.24946]
[1742268791950,3.0,1905.1,1904.9,10.4989]
[1742268792147,3.0,1905.1,1905.0,5.24934]
[1742268794161,3.0,1905.1,1904.9,5.24944]
[1742268794330,3.0,1905.1,1904.8,5.24985]
[1742268794742,3.0,1905.1,1904.8,10.49953]
[1742268795057,2.98747542,1905.1,1904.8,10.49953]
[1742268795260,2.98747542,1905.1,1904.9,5.2496]
[1742268795858,2.98747542,1905.1,1904.9,10.49907]
[1742268796064,2.98747542,1905.1,1905.0,5.24934]
[1742268796434,7.64909324,1905.1,1904.8,1.661033]
[1742268796629,12.89829324,1905.1,1904.7,10.53005]
[1742268796827,12.89829324,1905.1,1904.7,10.50006]
[1742268797562,4.66161782,1904.9,1904.5,6.06769]
[1742268797743,4.66161782,1904.9,1904.5,0.8171]
[1742268797947,9.91133782,1904.9,1904.6,5.25022]
[1742268798140,4.66161782,1904.9,1904.6,10.50057]
[1742268798344,4.66161782,1904.9,1904.7,10.5002]
[1742268798548,3.0,1904.9,1904.8,5.24989]
[1742268801580,7.66161782,1904.9,1904.6,5.25043]
[1742268801776,3.0,1904.8,1904.6,5.25043]
[1742268802296,3.8202,1904.8,1904.5,10.50113]
[1742268802592,3.8202,1904.8,1904.4,5.25097]
[1742268802745,3.0,1904.4,1904.2,5.25142]
[1742268802950,3.0,1904.4,1904.2,10.50282]
[1742268803348,9.04556,1904.4,1904.0,5.25204]
[1742268803579,9.04556,1904.4,1903.9,0.7909]
[1742268803580,3.0,1904.2,1903.9,0.7909]
[1742268803742,3.0,1904.2,1903.9,5.25228]
[1742268803947,3.0,1904.0,1903.8,5.25263]
[1742268804380,5.2513,1904.3,1903.8,5.25263]
[1742268804381,7.66161782,1904.3,1904.0,5.25191]
[1742268804547,7.66161782,1904.3,1904.1,5.25167]
[1742268804741,7.66161782,1904.3,1903.8,6.382294]
[1742268804742,7.66161782,1904.3,1904.0,5.25207]
[1742268804955,3.0,1904.4,1904.1,0.7875]
[1742268805158,5.49351782,1904.6,1904.4,5.25086]
[1742268805361,4.66161782,1904.6,1904.4,10.50169]
[1742268805851,4.66161782,1904.6,1904.5,5.25072]
[1742268806045,3.0,1904.5,1904.3,5.25113]
[1742268806242,3.0,1904.5,1904.2,10.50296]
[1742268806474,4.66161782,1904.4,1904.2,5.25145]
[1742268806772,4.66161782,1904.4,1904.2,5.25137]
[1742268806975,4.66161782,1904.4,1904.1,6.03928]
[1742268807176,4.66161782,1904.4,1904.0,5.25199]
[1742268807177,7.66161782,1904.4,1904.0,5.25199]
[1742268807348,7.66161782,1904.4,1904.1,5.25164]
[1742268807546,7.66161782,1904.4,1904.2,10.50281]
[1742268807751,3.0,1904.4,1904.3,5.25127]
[1742268809090,3.0,1904.4,1904.2,5.25139]
[1742268809456,3.0,1904.4,1904.2,10.50277]
[1742268809796,3.0,1904.4,1904.2,1.050277]
[1742268810001,3.0,1904.4,1904.3,5.25127]
[1742268810699,3.0,1904.9,1904.6,5.25024]
[1742268810883,3.0,1904.7,1904.5,5.25072]
[1742268811468,3.0,1904.5,1904.3,6.07559]
[1742268811674,3.0,1904.5,1904.3,13.0916197]
[1742268812012,8.68161782,1904.9,1904.3,2.5893397]
[1742268812157,11.72763884,1905.0,1904.7,5.25013]
[1742268812507,3.0,1904.9,1904.7,5.25013]
[1742268812667,4.66161782,1904.8,1904.6,5.25034]
[1742268812866,4.66161782,1904.8,1904.6,10.50064]
[1742268813083,4.66161782,1904.8,1904.7,5.25017]
[1742268813767,4.66161782,1904.8,1904.6,5.2503]
[1742268813994,4.66161782,1904.8,1904.7,5.25017]
[1742268814397,3.0,1905.0,1904.8,5.24989]
[1742268814562,7.66161782,1905.1,1904.8,5.24989]
[1742268814761,12.91078782,1905.1,1904.7,5.25013]
[1742268814964,18.16002782,1905.1,1904.7,5.25013]
[1742268815163,3.0,1904.8,1904.7,5.25008]
[1742268815399,3.0,1904.8,1904.6,5.25029]
[1742268815611,4.66161782,1905.1,1905.0,5.24934]
[1742268815906,4.66161782,1905.1,1904.5,0.7788]
[1742268815907,9.91076782,1905.1,1904.5,0.7788]
[1742268816089,4.66161782,1904.8,1904.6,5.25035]
[1742268816262,4.66161782,1904.8,1904.4,5.25098]
[1742268816462,4.66161782,1904.6,1904.4,5.25098]
[1742268816693,3.0,1904.5,1904.2,10.50273]
[1742268816898,4.66161782,1904.4,1904.2,10.50266]
[1742268817096,3.0,1904.4,1904.3,5.25127]
[1742268818299,3.0,1904.7,1904.6,5.25029]
[1742268819698,3.0,1904.7,1904.5,5.25063]
[1742268819898,4.66161782,1904.6,1904.4,10.50177]
[1742268820097,5.46601782,1904.6,1904.3,5.25125]
[1742268820505,6.8376436,1904.6,1904.3,5.25125]
[1742268820999,12.0880936,1904.6,1904.3,5.25125]
[1742268821201,6.8376436,1904.6,1904.3,5.25125]
[1742268821569,4.66161782,1904.4,1904.3,5.25125]
[1742268822272,4.66161782,1904.4,1904.1,10.50353]
[1742268822496,3.0,1904.3,1904.0,5.25203]
[1742268822772,5.41661782,1904.2,1903.9,10.50454]
[1742268822983,5.41661782,1904.2,1904.0,5.25189]
[1742268823178,8.41661782,1904.2,1904.1,5.25182]
[1742268823601,7.66161782,1904.2,1904.0,5.25189]
[1742268823807,7.66161782,1904.2,1904.1,5.25182]
[1742268823976,3.0,1904.2,1904.1,5.25182]
[1742268827323,3.0,1904.2,1904.1,6.00452]
[1742268827979,11.75730041,1904.6,1904.3,5.25101]
[1742268828180,3.0,1904.5,1904.4,5.25093]
[1742268828583,3.0,1904.5,1904.2,5.25152]
[1742268828889,3.0,1904.5,1904.4,5.25099]
[1742268829204,3.0,1904.5,1904.3,5.25115]
[1742268829774,3.0,1904.5,1904.3,10.50223]
[1742268829978,3.0,1904.5,1904.3,10.50217]
[1742268830205,3.0,1904.5,1904.1,0.7527]
[1742268830206,3.0,1904.3,1904.2,5.25148]
[1742268835011,0.808,1904.6,1904.4,5.25084]
[1742268835213,7.20494748,1904.5,1904.4,5.25084]
[1742268838524,7.20494748,1904.5,1904.3,10.50231]
[1742268838696,7.20494748,1904.5,1904.3,5.25115]
[1742268839294,7.20494748,1904.5,1904.3,10.50232]
[1742268839601,7.20494748,1904.5,1904.4,5.25099]
[1742268840823,3.0,1904.5,1904.4,6.384134]
[1742268841013,4.20494748,1904.7,1904.6,5.25044]
[1742268843296,3.0,1904.8,1904.7,5.25017]
[1742268843647,7.20494748,1904.8,1904.7,5.25017]
[1742268843930,3.0,1904.8,1904.7,6.38152]
[1742268844097,22.36094748,1905.0,1904.7,6.38152]
[1742268844098,18.156,1905.0,1904.9,5.24961]
[1742268844298,22.36094748,1905.0,1904.9,5.24961]
[1742268844520,3.0,1905.1,1905.0,5.24924]
[1742268844741,7.20494748,1905.1,1905.0,5.24924]
[1742268845230,7.20494748,1905.1,1904.9,5.24961]
[1742268845437,7.20494748,1905.1,1905.0,5.24934]
[1742268848036,7.20494748,1905.1,1905.0,6.299216]
[1742268848335,3.0,1905.4,1905.3,5.24851]
[1742268848537,0.7765,1905.6,1905.4,5.24802]
[1742268848538,1.85172694,1905.6,1905.4,5.24802]
[1742268848693,18.156,1905.7,1905.5,5.24796]
[1742268848899,18.156,1905.7,1905.6,5.24769]
[1742268849094,21.156,1905.7,1905.6,5.24769]
[1742268849509,9.40994748,1905.8,1905.7,5.24741]
[1742268849807,12.40994748,1905.8,1905.7,5.24741]
[1742268850048,7.20494748,1905.8,1905.7,5.24741]
[1742268850253,10.49285,1906.1,1905.7,5.24741]
[1742268850254,0.7765,1906.1,1905.8,5.24714]
[1742268850452,4.20494748,1906.0,1905.7,6.29682]
[1742268850624,4.20494748,1906.0,1905.8,5.24712]
[1742268850814,4.20494748,1906.0,1905.8,10.49404]
[1742268851019,3.0,1905.9,1905.7,6.29684]
[1742268851231,3.0,1905.9,1905.8,5.24714]
[1742268853320,3.0,1905.9,1905.8,6.401538]
[1742268854370,3.0,1906.1,1906.0,5.24649]
[1742268855124,4.20494748,1906.2,1906.1,5.24631]
[1742268860957,7.20494748,1906.2,1906.0,5.24649]
[1742268861128,0.7669,1906.1,1905.7,5.24723]
[1742268861333,7.20494748,1906.0,1905.9,5.24686]
[1742268861854,7.20494748,1906.2,1906.0,5.24649]
[1742268862418,7.20494748,1906.2,1905.9,11.30508]
[1742268862625,7.20494748,1906.2,1906.0,5.24657]
[1742268862959,7.20494748,1906.2,1906.1,5.24631]
[1742268863433,7.20494748,1906.2,1906.1,6.295598]
[1742268864054,4.20494748,1906.4,1906.2,5.24592]
[1742268864558,3.0,1906.3,1906.2,5.24592]
[1742268865567,3.0,1906.3,1906.1,6.295598]
[1742268865856,4.20494748,1906.2,1906.0,5.24647]
[1742268866153,3.7943,1906.1,1905.8,5.24701]
[1742268866360,4.20494748,1906.0,1905.9,5.24686]
[1742268871460,4.02,1906.4,1906.3,5.24576]
[1742268871632,7.02,1906.4,1906.3,5.24576]
[1742268872035,4.02,1906.4,1906.3,7.121739]
[1742268872632,3.0,1906.7,1906.6,5.24493]
[1742268872958,1.04190986,1906.9,1906.7,5.24456]
[1742268872959,5.24685734,1906.9,1906.7,5.24456]
[1742268873674,8.24443,1906.8,1906.4,5.24522]
[1742268873846,3.0,1906.6,1906.4,10.49062]
[1742268874048,4.20494748,1906.5,1906.3,6.294889]
[1742268874244,4.20494748,1906.5,1906.4,5.24548]
[1742268874480,4.20494748,1906.5,1906.3,6.294849]
[1742268874630,4.20494748,1906.5,1906.3,6.294829]
[1742268874836,4.20494748,1906.5,1906.3,5.24565]
[1742268875037,4.20494748,1906.5,1906.4,5.24548]
[1742268875999,4.20494748,1906.5,1906.3,5.24562]
[1742268876153,9.45024748,1906.5,1906.2,5.24591]
[1742268876365,9.45024748,1906.5,1906.2,6.295106]
[1742268876582,4.20494748,1906.5,1906.2,1.049196]
[1742268876897,4.20494748,1906.5,1906.3,5.2456]
[1742268877079,9.45019748,1906.5,1906.2,5.246]
[1742268877385,9.45019748,1906.5,1906.0,6.06128]
[1742268877386,5.2455,1906.4,1906.1,10.49251]
[1742268877554,9.45019748,1906.5,1906.1,10.49251]
[1742268877753,4.20494748,1906.3,1906.0,6.06119]
[1742268877966,4.20494748,1906.3,1906.1,5.24616]
[1742268878179,4.20494748,1906.3,1906.1,10.49234]
[1742268878379,4.20494748,1906.3,1906.1,5.24616]
[1742268878571,9.45075748,1906.3,1905.8,0.8265]
[1742268878906,14.69669748,1906.3,1905.9,5.24686]
[1742268879074,4.20494748,1906.1,1905.9,5.24686]
[1742268879458,4.20494748,1906.1,1905.9,10.49363]
[1742268879750,7.20494748,1906.1,1906.0,5.24658]
[1742268880449,3.0,1906.1,1906.0,5.24658]
[1742268882682,3.0,1906.1,1905.9,6.378815]
[1742268882889,3.0,1906.1,1905.9,11.625565]
[1742268883079,3.0,1906.1,1906.0,5.24658]
[1742268883981,3.0,1906.1,1906.0,6.4091175]
[1742268885186,3.0,1906.1,1906.0,5.24658]
[1742268887255,7.20494748,1906.4,1906.3,5.24576]
[1742268887460,7.20494748,1906.4,1906.1,5.2462]
[1742268887685,7.20494748,1906.4,1906.1,10.49237]
[1742268887900,4.20494748,1906.4,1906.2,5.246]
[1742268888189,3.0,1906.3,1906.2,6.295217]
[1742268888390,3.0,1906.3,1906.2,1.049217]
[1742268888982,3.0,1906.3,1906.2,6.295247]
[1742268889589,3.0,1906.3,1906.2,1.049217]
[1742268889894,3.0,1906.3,1906.2,6.295247]
[1742268890074,4.20494748,1906.4,1906.3,5.24576]
[1742268890259,8.03414748,1906.6,1906.4,5.24548]
[1742268890593,4.02,1906.8,1906.4,5.24548]
[1742268890594,5.03284748,1906.8,1906.6,5.24488]
[1742268890760,3.8279,1906.8,1906.6,5.24488]
[1742268890961,8.03284748,1906.8,1906.6,5.24488]
[1742268891263,5.03284748,1906.8,1906.6,5.24488]
[1742268891793,4.20494748,1906.8,1906.6,5.24488]
[1742268891987,4.20494748,1906.8,1906.5,5.24509]
[1742268892193,14.69407748,1906.8,1906.4,5.24548]
[1742268892390,4.20494748,1906.6,1906.4,11.65534907]
[1742268892596,4.20494748,1906.6,1906.5,5.24521]
[1742268893798,7.20494748,1906.8,1906.5,10.49019]
[1742268895091,7.20494748,1906.8,1906.5,5.24498]
[1742268895280,12.44935748,1906.8,1906.5,6.41047791]
[1742268895485,17.69395748,1906.8,1906.5,1.16549791]
[1742268895682,17.69395748,1906.8,1906.4,5.24547]
[1742268895893,17.69395748,1906.8,1906.4,10.49081]
[1742268896066,12.44935748,1906.8,1906.5,5.24512]
[1742268896597,12.44935748,1906.8,1906.5,5.24509]
[1742268896770,8.24441,1906.8,1906.5,10.49022]
[1742268896977,7.20494748,1906.8,1906.5,11.539242]
[1742268897179,7.20494748,1906.8,1906.7,5.24466]
[1742268897587,7.20494748,1906.8,1906.6,6.07092]
[1742268897788,7.20494748,1906.8,1906.6,5.24482]
[1742268898190,7.20494748,1906.8,1906.7,5.24466]
[1742268898907,7.20494748,1906.8,1906.6,10.48952]
[1742268899204,7.20494748,1906.8,1906.5,12.329032]
[1742268899571,7.20494748,1906.8,1906.6,5.24492]
[1742268900600,7.20494748,1906.8,1906.6,10.48962]
[1742268900804,7.20494748,1906.8,1906.6,5.2447]
[1742268901006,7.20494748,1906.8,1906.5,6.294182]
[1742268901202,12.44949748,1906.8,1906.4,5.24537]
[1742268901398,12.44949748,1906.8,1906.5,5.24512]
[1742268901597,17.69405748,1906.8,1906.4,5.24537]
[1742268901775,12.44949748,1906.8,1906.5,5.24509]
[1742268901975,7.20494748,1906.8,1906.5,10.49018]
[1742268902375,7.20494748,1906.8,1906.6,5.24493]
[1742268903399,7.20494748,1906.8,1906.6,5.2448]
[1742268903719,1.06517588,1906.9,1906.8,5.24438]
[1742268903880,8.24369,1907.1,1906.7,5.24466]
[1742268904081,8.24369,1907.1,1906.6,6.04918]
[1742268904082,3.0,1906.9,1906.6,11.29385]
[1742268904281,3.0,1906.9,1906.7,5.24465]
[1742268904913,3.0,1906.9,1906.6,6.374115]
[1742268905220,9.44936748,1906.8,1906.5,5.24519]
[1742268905382,4.20494748,1906.8,1906.5,5.245]
[1742268905577,14.69394748,1906.8,1906.4,6.06228]
[1742268905784,4.20494748,1906.6,1906.3,10.49137]
[1742268905982,4.20494748,1906.6,1906.4,5.24543]
[1742268906177,4.20494748,1906.6,1906.4,6.294538]
[1742268906601,10.21323748,1906.6,1906.2,6.06289]
[1742268906801,4.20494748,1906.4,1906.2,11.30876]
[1742268907005,3.0,1906.3,1906.0,6.06323]
[1742268907185,3.0,1906.3,1906.1,5.24629]
[1742268907384,3.0,1906.3,1906.1,5.24619]
[1742268907586,3.0,1906.5,1906.2,5.770459]
[1742268907786,3.0,1906.5,1906.3,5.24576]
[1742268908511,3.0,1906.5,1906.4,5.24548]
[1742268909714,3.0,1906.7,1906.5,5.24518]
[1742268909884,7.20494748,1906.8,1906.5,5.24504]
[1742268910284,7.20494748,1906.8,1906.6,5.24492]
[1742268910813,7.20494748,1906.8,1906.5,5.24511]
[1742268911918,1.02723988,1906.9,1906.4,5.24548]
[1742268912211,7.95604748,1907.0,1906.7,5.24461]
[1742268912383,13.19999748,1907.0,1906.6,5.24477]
[1742268912579,13.19999748,1907.0,1906.6,5.850647]
[1742268912803,4.20494748,1906.8,1906.5,6.05919]
[1742268913009,4.20494748,1906.8,1906.5,5.24519]
[1742268913205,3.0,1906.7,1906.4,5.24544]
[1742268913392,3.0,1906.5,1906.3,11.2594]
[1742268913694,3.0,1906.5,1906.3,10.49128]
[1742268913899,7.20494748,1906.8,1906.4,5.24548]
[1742268914117,7.20494748,1906.8,1906.5,10.49018]
[1742268914292,7.20494748,1906.8,1906.5,5.24509]
[1742268914687,12.44943748,1906.8,1906.4,5.24536]
[1742268914887,7.20494748,1906.8,1906.3,1.6898899]
[1742268915089,5.2493273,1907.0,1906.7,5.24446]
[1742268915284,10.4931673,1907.0,1906.7,5.24446]
[1742268915500,3.0,1906.9,1906.7,5.24446]
[1742268915701,3.0,1906.7,1906.6,5.24491]
[1742268915896,3.0,1906.7,1906.5,5.24518]
[1742268916085,3.0,1906.7,1906.4,6.02984]
[1742268916290,3.0,1906.7,1906.4,5.24544]
[1742268916594,3.0,1906.7,1906.4,11.539896]
[1742268917501,3.0,1906.7,1906.5,5.245]
[1742268917702,3.0,1906.7,1906.6,5.24493]
[1742268918218,3.0,1906.9,1906.8,5.24438]
[1742268918716,4.20494748,1907.0,1906.8,11.24456]
[1742268918915,4.20494748,1907.0,1906.8,12.369016]
[1742268919112,3.0,1906.9,1906.8,7.124636]
[1742268920123,4.20494748,1907.0,1906.8,12.368816]
[1742268920618,4.20494748,1907.0,1906.8,7.124436]
[1742268920923,3.0,1906.9,1906.7,10.48914]
[1742268921286,3.0,1906.9,1906.8,5.24438]
[1742268922245,1.83771197,1907.2,1906.6,6.05883]
[1742268922388,3.0,1907.1,1906.9,5.24399]
[1742268922594,3.0,1907.1,1907.0,5.24383]
[1742268923138,3.0,1907.1,1907.0,6.292608]
[1742268923507,6.27791634,1907.3,1907.0,11.536438]
[1742268923508,8.23976382,1907.3,1907.0,11.536438]
[1742268923838,13.48280382,1907.3,1907.0,6.292608]
[1742268924032,18.72605382,1907.3,1907.0,1.048778]
[1742268924342,13.48280382,1907.3,1906.9,11.27709]
[1742268924526,18.72598382,1907.3,1906.9,11.27709]
[1742268925020,13.48280382,1907.3,1906.9,11.27709]
[1742268925222,5.02394748,1907.1,1906.8,10.48863]
[1742268925428,8.02394748,1907.1,1906.9,5.24405]
[1742268925746,7.20494748,1907.1,1906.9,5.24405]
[1742268925938,7.20494748,1907.1,1906.9,10.48793]
[1742268926234,3.0,1907.1,1907.0,5.24383]
[1742268928040,5.23738933,1907.5,1907.4,5.24273]
[1742268928347,3.0,1907.5,1907.4,5.24273]
[1742268928936,7.20494748,1907.5,1907.3,5.24289]
[1742268929097,7.20494748,1907.5,1907.3,11.534375]
[1742268929429,7.20494748,1907.5,1907.3,6.291485]
[1742268929731,7.20494748,1907.5,1907.3,11.534395]
[1742268930436,7.20494748,1907.5,1907.3,6.291485]
[1742268930727,7.20494748,1907.5,1907.3,6.291475]
[1742268930919,3.0,1907.5,1907.4,5.24273]
[1742268931305,4.20494748,1907.7,1907.5,5.24231]
[1742268931513,4.20494748,1907.7,1907.4,6.0719]
[1742268931700,3.0,1907.6,1907.4,11.31449]
[1742268932142,9.44750748,1907.5,1907.2,6.07241]
[1742268932312,3.0,1907.4,1907.2,11.617933]
[1742268932703,3.0,1907.4,1907.2,11.617913]
[1742268933098,3.0,1907.4,1907.2,6.374723]
[1742268933429,3.0,1907.4,1907.2,11.617823]
[1742268933733,3.0,1907.4,1907.2,6.374693]
[1742268933910,3.0,1907.4,1907.3,0.6374693]
[1742268934100,3.0,1907.4,1907.3,5.8804793]
[1742268934596,3.0,1907.5,1907.3,11.1233893]
[1742268934798,3.0,1907.6,1907.3,11.1233893]
[1742268935009,3.0,1907.6,1907.3,5.8803793]
[1742268935427,8.24222,1907.6,1907.3,5.8803793]
[1742268935649,4.20494748,1907.5,1907.2,5.24319]
[1742268935810,4.20494748,1907.5,1907.2,5.2431]
[1742268936012,4.20494748,1907.5,1907.2,10.48621]
[1742268936710,7.20494748,1907.7,1907.4,5.24263]
[1742268936910,12.44693748,1907.7,1907.4,5.24263]
[1742268937107,4.20494748,1907.5,1907.4,5.24263]
[1742268937445,4.20494748,1907.5,1907.4,6.291192]
[1742268939548,7.20494748,1907.7,1907.4,11.533822]
[1742268941661,12.44686748,1907.7,1907.4,11.533792]
[1742268942449,12.44686748,1907.7,1907.4,6.291162]
[1742268942645,7.20494748,1907.5,1907.2,5.24317]
[1742268942856,3.0,1907.4,1907.2,5.24317]
[1742268943033,3.0,1907.4,1907.2,10.48632]
[1742268943223,3.0,1907.4,1907.2,5.24315]
[1742268943426,3.0,1907.4,1907.2,1.131587]
[1742268943625,3.0,1907.4,1907.2,6.374867]
[1742268943827,3.0,1907.4,1907.2,6.374697]
[1742268944556,3.7895,1907.7,1907.4,5.24256]
[1742268944720,9.44721748,1907.6,1907.2,6.374767]
[1742268944919,4.20494748,1907.6,1907.3,10.48581]
[1742268945123,4.20494748,1907.6,1907.4,5.2427]
[1742268945371,4.20494748,1907.6,1907.5,5.24246]
[1742268945575,4.20494748,1907.6,1907.4,5.2427]
[1742268947163,3.0,1907.5,1907.3,5.24297]
[1742268947366,3.0,1907.5,1907.3,6.370511]
[1742268947542,3.0,1907.5,1907.3,11.613321]
[1742268947952,3.7895,1907.7,1907.5,5.24243]
[1742268948971,3.7895,1907.7,1907.4,5.24273]
[1742268949176,3.7895,1907.7,1907.4,5.24263]
[1742268949336,3.0,1907.7,1907.5,5.766713]
[1742268949735,3.0,1907.7,1907.5,5.766613]
[1742268950883,1.06177199,1907.9,1907.8,5.24163]
[1742268951041,0.7718,1908.2,1908.1,5.24081]
[1742268951237,0.7718,1908.2,1907.9,5.24124]
[1742268951438,3.7718,1908.2,1907.9,5.24124]
[1742268951685,1.04940638,1908.3,1908.0,5.2409]
[1742268951847,10.21675748,1908.4,1908.0,5.2409]
[1742268952051,15.45692748,1908.4,1908.0,5.2409]
[1742268952260,0.7718,1908.4,1908.1,5.2407]
[1742268952463,10.21675748,1908.4,1908.1,5.2407]
[1742268952643,0.7718,1908.4,1908.1,5.2407]
[1742268952845,10.21673748,1908.4,1908.0,5.24106]
[1742268953156,3.0,1908.3,1908.0,5.24092]
[1742268953353,3.0,1908.3,1908.0,5.8976244]
[1742268953538,4.97674748,1908.4,1908.1,5.24063]
[1742268953970,3.0,1908.3,1908.1,5.24063]
[1742268954765,3.0,1908.3,1908.0,5.8977144]
[1742268956295,3.0,1908.3,1908.0,5.8976644]
[1742268956455,3.0,1908.3,1908.1,5.83036644]
[1742268956661,3.0,1908.4,1908.2,5.24054]
[1742268956861,4.06433184,1908.5,1908.2,5.24054]
[1742268957058,4.06433184,1908.5,1908.2,5.24038]
[1742268957265,4.06433184,1908.5,1908.2,5.24037]
[1742268957463,4.06433184,1908.5,1908.3,5.764287]
[1742268957663,4.06433184,1908.5,1908.3,0.524037]
[1742268957966,12.44502748,1908.4,1908.0,10.48198]
[1742268958162,7.20494748,1908.4,1908.1,5.24076]
[1742268958363,7.20494748,1908.4,1908.1,10.48142]
[1742268958920,7.20494748,1908.4,1908.1,10.48134]
[1742268959201,3.0,1908.4,1908.2,5.24052]
[1742268959402,3.0,1908.4,1908.2,6.288638]
[1742268959897,6.30429184,1908.5,1908.2,6.288638]
[1742268960200,3.0,1908.4,1908.2,6.288638]
[1742268961092,4.06433184,1908.5,1908.2,11.529028]
[1742268961296,4.06433184,1908.5,1908.2,6.288508]
[1742268961506,4.06433184,1908.5,1908.2,5.24039]
[1742268962503,9.30404184,1908.5,1908.2,5.24039]
[1742268962690,5.24003,1908.4,1908.1,5.2408]
[1742268963001,9.44566748,1908.2,1907.8,5.24161]
[1742268963202,4.20494748,1907.9,1907.8,5.24163]
[1742268963504,5.24111,1908.0,1907.8,1.048353]
[1742268963881,4.20494748,1907.9,1907.5,5.766543]
[1742268964203,4.20494748,1907.9,1907.6,5.24218]
[1742268964669,9.44644748,1907.9,1907.5,5.766613]
[1742268964866,9.44644748,1907.9,1907.5,11.008983]
[1742268966486,0.7767,1908.0,1907.8,5.24147]
[1742268966677,1.78757482,1908.2,1907.8,1.328147]
[1742268966879,4.02,1908.3,1908.1,5.24071]
[1742268967075,10.08164748,1908.4,1908.1,5.24061]
[1742268967395,3.0,1908.3,1908.1,10.48129]
[1742268967594,3.0,1908.3,1908.2,5.24054]
[1742268967902,3.0,1908.3,1908.1,10.48134]
[1742268968107,5.2508385,1908.4,1908.2,6.288514]
[1742268968278,5.2508385,1908.4,1908.2,5.24038]
[1742268968477,8.23977,1908.5,1908.3,5.24013]
[1742268968478,3.0,1908.5,1908.3,5.24013]
[1742268968678,20.60929748,1908.6,1908.3,5.24013]
[1742268968973,3.0,1908.5,1908.4,5.23999]
[1742268969397,3.0,1908.5,1908.3,5.24011]
[1742268969599,3.0,1908.5,1908.3,5.24016]
[1742268969804,3.0,1908.5,1908.3,6.288221]
[1742268970106,3.0,1908.5,1908.3,1.048061]
[1742268970471,3.0,1908.5,1908.3,6.288301]
[1742268970810,7.20494748,1908.4,1908.3,1.048061]
[1742268971303,6.05996,1908.3,1908.0,5.24103]
[1742268971510,4.20494748,1908.2,1908.0,5.24103]
[1742268971713,9.44558748,1908.2,1907.8,6.03889]
[1742268971890,4.20494748,1908.2,1907.9,5.24126]
[1742268972086,9.44550748,1908.2,1907.9,5.845126]
[1742268972311,4.20494748,1908.2,1907.9,5.845086]
[1742268972476,9.44552748,1908.2,1907.9,5.845086]
[1742268972679,3.0,1907.9,1907.7,5.2419]
[1742268972897,3.0,1907.9,1907.8,5.24163]
[1742268973106,3.0,1908.2,1907.8,0.7852]
[1742268973298,4.20494748,1908.1,1907.9,5.24126]
[1742268973502,4.20494748,1908.1,1907.9,5.24135]
[1742268975012,4.20494748,1908.1,1907.8,5.24153]
[1742268975323,10.3575351,1908.4,1907.9,6.02066]
[1742268975615,3.0,1908.3,1908.1,5.24071]
[1742268976316,3.0,1908.4,1908.3,5.24004]
[1742268978005,3.0,1908.5,1908.3,10.4801]
[1742268978406,3.0,1908.5,1908.3,5.24004]
[1742268978605,3.0,1908.5,1908.2,6.04969]
[1742268978805,8.23979,1908.5,1908.2,6.369538]
[1742268979640,3.0,1908.5,1908.2,6.369408]
[1742268979815,3.0,1908.5,1908.2,5.24036]
[1742268980015,3.0,1908.5,1908.3,5.24023]
[1742268980327,3.0,1908.5,1908.2,5.24036]
[1742268980533,4.20494748,1908.4,1908.2,10.48075]
[1742268981008,4.20494748,1908.4,1908.3,5.24026]
[1742268981208,4.20494748,1908.4,1908.2,5.24036]
[1742268981403,4.20494748,1908.4,1908.3,5.24026]
[1742268981626,3.0,1908.5,1908.3,5.24026]
[1742268982008,3.0,1908.5,1908.4,5.23999]
[1742268982210,3.0,1908.5,1908.3,5.24026]
[1742268982639,3.0,1908.5,1908.3,10.48037]
[1742268982825,3.0,1908.5,1908.3,5.24011]
[1742268983143,4.20494748,1908.4,1908.2,5.24051]
[1742268983324,4.20494748,1908.4,1908.2,10.48095]
[1742268983637,4.20494748,1908.4,1908.3,5.24026]
[1742268984007,3.0,1908.6,1908.3,5.24008]
[1742268984233,7.20494748,1908.6,1908.3,10.48019]
[1742268984739,7.20494748,1908.6,1908.3,10.4802]
[1742268984940,7.20494748,1908.6,1908.4,5.23998]
[1742268985813,7.20494748,1908.6,1908.4,10.47987]
[1742268986441,6.05606,1908.9,1908.5,5.23971]
[1742268986737,4.20494748,1908.8,1908.6,5.23928]
[1742268986937,4.20494748,1908.8,1908.5,5.23967]
[1742268987140,3.0,1908.7,1908.4,5.23988]
[1742268987445,4.20494748,1908.6,1908.5,5.23971]
[1742268987606,3.0,1908.7,1908.6,5.23944]
[1742268988115,3.0,1908.7,1908.5,11.527096]
[1742268990122,3.0,1908.7,1908.6,5.23944]
[1742268990334,3.01,1908.9,1908.8,5.23889]
[1742268990528,3.01,1908.9,1908.7,5.23905]
[1742268990723,3.01,1908.9,1908.8,5.23889]
[1742268991127,3.01,1908.9,1908.7,5.842235]
[1742268991835,3.01,1908.9,1908.7,11.081255]
[1742268992028,3.01,1908.9,1908.8,5.23889]
[1742268992438,3.01,1908.9,1908.7,5.842205]
[1742268992741,3.01,1908.9,1908.7,11.081275]
[1742268993213,3.01,1908.9,1908.8,5.23889]
[1742268993418,3.01,1908.9,1908.8,6.3470175]
[1742268994267,0.01,1908.9,1908.8,6.3470175]
[1742269004650,0.01,1908.9,1908.8,1.1081275]
[1742269004835,0.01,1908.9,1908.7,5.842205]
[1742269005057,4.20494748,1908.8,1908.6,5.2394]